[Event "Late-Titled-Tuesday-Blitz-June-18-2024"]
[Site "Chess.com"]
[Date "2024.06.18"]
[Round "2"]
[White "KarlEmilElmer"]
[Black "pinelone"]
[Result "0-1"]
[WhiteElo "2173"]
[BlackElo "2471"]
[TimeControl "180+1"]
[EndTime "14:21:36 PDT"]
[Termination "pinelone won by checkmate"]

1. d4 {[%clk 0:03:00.9]} 1... Nf6 {[%clk 0:02:59.6]} 2. c4 {[%clk 0:03:00.2]}
2... e6 {[%clk 0:03:00.1]} 3. Nc3 {[%clk 0:02:59.9]} 3... Bb4 {[%clk 0:02:59.7]}
4. Bg5 {[%clk 0:03:00.4]} 4... c5 {[%clk 0:02:58.1]} 5. Nf3 {[%clk 0:02:59.5]}
5... cxd4 {[%clk 0:02:55.5]} 6. Nxd4 {[%clk 0:02:59.3]} 6... Bxc3+ {[%clk
0:02:54.3]} 7. bxc3 {[%clk 0:02:58.8]} 7... Qa5 {[%clk 0:02:54.1]} 8. Nb5 {[%clk
0:02:27.7]} 8... O-O {[%clk 0:02:38.8]} 9. Bxf6 {[%clk 0:02:02.9]} 9... gxf6
{[%clk 0:02:38.4]} 10. Qd4 {[%clk 0:01:44.5]} 10... Kg7 {[%clk 0:02:12.7]} 11.
Qg4+ {[%clk 0:01:15.5]} 11... Kh8 {[%clk 0:02:12.2]} 12. Qh4 {[%clk 0:01:15.7]}
12... Qd8 {[%clk 0:01:51.3]} 13. Nd6 {[%clk 0:00:53.1]} 13... Nc6 {[%clk
0:01:50.6]} 14. e4 {[%clk 0:00:44.2]} 14... b6 {[%clk 0:01:40.9]} 15. Bd3 {[%clk
0:00:39.9]} 15... Ne5 {[%clk 0:01:28.4]} 16. Bc2 {[%clk 0:00:33.8]} 16... Qe7
{[%clk 0:01:22.2]} 17. Rd1 {[%clk 0:00:31.6]} 17... Ba6 {[%clk 0:01:18.3]} 18.
Bb3 {[%clk 0:00:12.8]} 18... Rg8 {[%clk 0:01:04.4]} 19. f4 {[%clk 0:00:08.8]}
19... Ng6 {[%clk 0:00:58.4]} 20. Qf2 {[%clk 0:00:08.8]} 20... Rg7 {[%clk
0:00:29.1]} 21. O-O {[%clk 0:00:08.8]} 21... Rag8 {[%clk 0:00:27.3]} 22. g3
{[%clk 0:00:08.2]} 22... Nf8 {[%clk 0:00:17.5]} 23. f5 {[%clk 0:00:07.5]} 23...
e5 {[%clk 0:00:15.5]} 24. Rd5 {[%clk 0:00:05.8]} 24... Rg5 {[%clk 0:00:13.3]}
25. Qe2 {[%clk 0:00:04]} 25... Rg4 {[%clk 0:00:12.1]} 26. Qf3 {[%clk 0:00:04.1]}
26... R4g5 {[%clk 0:00:12.4]} 27. Rfd1 {[%clk 0:00:04.2]} 27... R5g7 {[%clk
0:00:12.4]} 28. Qe3 {[%clk 0:00:04]} 28... Rg5 {[%clk 0:00:12.6]} 29. Qf3 {[%clk
0:00:04.5]} 29... h6 {[%clk 0:00:11.7]} 30. Qe3 {[%clk 0:00:04.6]} 30... Nh7
{[%clk 0:00:12.1]} 31. Qf3 {[%clk 0:00:03.6]} 31... R5g7 {[%clk 0:00:12]} 32.
Qe3 {[%clk 0:00:04.1]} 32... Ng5 {[%clk 0:00:11.4]} 33. Re1 {[%clk 0:00:04.6]}
33... Rh7 {[%clk 0:00:10.9]} 34. Kh1 {[%clk 0:00:04.7]} 34... Rhg7 {[%clk
0:00:11.3]} 35. Qd2 {[%clk 0:00:04.1]} 35... Rh7 {[%clk 0:00:09.2]} 36. Qe3
{[%clk 0:00:04.2]} 36... h5 {[%clk 0:00:09.6]} 37. Red1 {[%clk 0:00:04.5]} 37...
h4 {[%clk 0:00:10.1]} 38. g4 {[%clk 0:00:04.4]} 38... h3 {[%clk 0:00:10.3]} 39.
Re1 {[%clk 0:00:03.8]} 39... Rh6 {[%clk 0:00:09.9]} 40. Red1 {[%clk 0:00:04.3]}
40... Rh7 {[%clk 0:00:10.2]} 41. Re1 {[%clk 0:00:04.8]} 41... Qf8 {[%clk
0:00:10.6]} 42. Red1 {[%clk 0:00:05.3]} 42... Qh6 {[%clk 0:00:10.8]} 43. Re1
{[%clk 0:00:05.1]} 43... Qh4 {[%clk 0:00:11.1]} 44. Red1 {[%clk 0:00:05.2]}
44... Qxg4 {[%clk 0:00:11.2]} 45. Qg3 {[%clk 0:00:04.8]} 45... Qxg3 {[%clk
0:00:10.2]} 46. hxg3 {[%clk 0:00:05.7]} 46... Nf3 {[%clk 0:00:09.7]} 47. R1d3
{[%clk 0:00:05.4]} 47... Ng5 {[%clk 0:00:08.5]} 48. Kh2 {[%clk 0:00:05.4]} 48...
Nf3+ {[%clk 0:00:07.6]} 49. Rxf3 {[%clk 0:00:05]} 49... Rhg7 {[%clk 0:00:06.8]}
50. g4 {[%clk 0:00:04]} 50... Rxg4 {[%clk 0:00:06.4]} 51. Rxh3+ {[%clk
0:00:04.5]} 51... Kg7 {[%clk 0:00:06.2]} 52. Rg3 {[%clk 0:00:05.2]} 52... Kf8
{[%clk 0:00:06.3]} 53. Rxg4 {[%clk 0:00:05.4]} 53... Rxg4 {[%clk 0:00:06.7]} 54.
Rd3 {[%clk 0:00:05.2]} 54... Rf4 {[%clk 0:00:05.1]} 55. Rg3 {[%clk 0:00:04.6]}
55... Rf2+ {[%clk 0:00:05.1]} 56. Rg2 {[%clk 0:00:05.1]} 56... Rf3 {[%clk
0:00:05.1]} 57. Rg3 {[%clk 0:00:05.1]} 57... Rf2+ {[%clk 0:00:05.4]} 58. Kh3
{[%clk 0:00:06]} 58... Rf1 {[%clk 0:00:05.6]} 59. Rg2 {[%clk 0:00:06]} 59...
Rf3+ {[%clk 0:00:05.7]} 60. Kg4 {[%clk 0:00:06.5]} 60... Rf4+ {[%clk 0:00:06.1]}
61. Kg3 {[%clk 0:00:06.7]} 61... Rf1 {[%clk 0:00:05.8]} 62. Kh4 {[%clk
0:00:07.4]} 62... Rh1+ {[%clk 0:00:05.8]} 63. Kg4 {[%clk 0:00:06.6]} 63... Rh7
{[%clk 0:00:04.7]} 64. Kf3 {[%clk 0:00:06.2]} 64... Rh3+ {[%clk 0:00:04.8]} 65.
Ke2 {[%clk 0:00:06.8]} 65... Rh1 {[%clk 0:00:05.2]} 66. Kd2 {[%clk 0:00:06.6]}
66... Ra1 {[%clk 0:00:04.9]} 67. Kc2 {[%clk 0:00:06.6]} 67... Re1 {[%clk
0:00:04.7]} 68. Rh2 {[%clk 0:00:06.3]} 68... Ke7 {[%clk 0:00:05]} 69. Rh8 {[%clk
0:00:06.4]} 69... Kxd6 {[%clk 0:00:04.7]} 70. Kd2 {[%clk 0:00:05.1]} 70... Rg1
{[%clk 0:00:04.1]} 71. Rf8 {[%clk 0:00:05.1]} 71... Rg4 {[%clk 0:00:03.1]} 72.
Rxf7 {[%clk 0:00:05.1]} 72... Rxe4 {[%clk 0:00:03.2]} 73. Rxf6+ {[%clk
0:00:05.4]} 73... Ke7 {[%clk 0:00:03]} 74. Rh6 {[%clk 0:00:04.9]} 74... Bxc4
{[%clk 0:00:03.1]} 75. f6+ {[%clk 0:00:04.6]} 75... Kf7 {[%clk 0:00:02.9]} 76.
Bxc4+ {[%clk 0:00:04.5]} 76... Rxc4 {[%clk 0:00:03.2]} 77. Rh7+ {[%clk
0:00:04.4]} 77... Kxf6 {[%clk 0:00:03]} 78. Rxd7 {[%clk 0:00:05.1]} 78... Rc5
{[%clk 0:00:03]} 79. Rxa7 {[%clk 0:00:05.2]} 79... Kf5 {[%clk 0:00:02.7]} 80.
Ra6 {[%clk 0:00:05.3]} 80... Rb5 {[%clk 0:00:01.8]} 81. Ra8 {[%clk 0:00:05.7]}
81... Rb2+ {[%clk 0:00:01.9]} 82. Kc1 {[%clk 0:00:05.3]} 82... Rb5 {[%clk
0:00:01.9]} 83. Rf8+ {[%clk 0:00:05.3]} 83... Ke4 {[%clk 0:00:02.3]} 84. Kc2
{[%clk 0:00:05.3]} 84... Ke3 {[%clk 0:00:02.1]} 85. Rh8 {[%clk 0:00:05.3]} 85...
e4 {[%clk 0:00:02.6]} 86. Rh3+ {[%clk 0:00:05.3]} 86... Kf2 {[%clk 0:00:03.1]}
87. Rh2+ {[%clk 0:00:05]} 87... Kf3 {[%clk 0:00:03.6]} 88. Rh3+ {[%clk
0:00:05.4]} 88... Kf4 {[%clk 0:00:04.1]} 89. Rh4+ {[%clk 0:00:05.6]} 89... Kf3
{[%clk 0:00:04.4]} 90. Rh3+ {[%clk 0:00:05.7]} 90... Kg4 {[%clk 0:00:05]} 91.
Re3 {[%clk 0:00:05.6]} 91... Kf4 {[%clk 0:00:05.5]} 92. Re1 {[%clk 0:00:06]}
92... e3 {[%clk 0:00:06]} 93. Kd3 {[%clk 0:00:06.1]} 93... Rd5+ {[%clk
0:00:06.4]} 94. Kc4 {[%clk 0:00:06.2]} 94... Rd2 {[%clk 0:00:06.7]} 95. Kb5
{[%clk 0:00:05.1]} 95... Rb2+ {[%clk 0:00:06.8]} 96. Kc4 {[%clk 0:00:04.7]}
96... Kf3 {[%clk 0:00:07.1]} 97. a4 {[%clk 0:00:03.7]} 97... e2 {[%clk 0:00:07]}
98. Rc1 {[%clk 0:00:01.7]} 98... Kf2 {[%clk 0:00:07.2]} 99. Kd5 {[%clk
0:00:01.1]} 99... Rd2+ {[%clk 0:00:07]} 100. Kc6 {[%clk 0:00:01]} 100... Rd1
{[%clk 0:00:07.4]} 101. Rxd1 {[%clk 0:00:01]} 101... exd1=Q {[%clk 0:00:07.2]}
102. Kxb6 {[%clk 0:00:01.9]} 102... Qxa4 {[%clk 0:00:07.4]} 103. Kb7 {[%clk
0:00:02.3]} 103... Ke3 {[%clk 0:00:07.9]} 104. c4 {[%clk 0:00:03.2]} 104... Qxc4
{[%clk 0:00:08.1]} 105. Kb8 {[%clk 0:00:03.3]} 105... Kd4 {[%clk 0:00:09]} 106.
Kb7 {[%clk 0:00:04.2]} 106... Qc5 {[%clk 0:00:08.9]} 107. Ka8 {[%clk 0:00:04.2]}
107... Qe7 {[%clk 0:00:09]} 108. Kb8 {[%clk 0:00:04.2]} 108... Kc5 {[%clk
0:00:09.3]} 109. Kc8 {[%clk 0:00:05.1]} 109... Kb6 {[%clk 0:00:08.9]} 110. Kb8
{[%clk 0:00:06]} 110... Qb7# {[%clk 0:00:09.1]} 0-1

[Event "Late-Titled-Tuesday-Blitz-June-18-2024"]
[Site "Chess.com"]
[Date "2024.06.18"]
[Round "2"]
[White "monomita"]
[Black "Pelusiansky"]
[Result "1/2-1/2"]
[WhiteElo "2784"]
[BlackElo "2553"]
[TimeControl "180+1"]
[EndTime "14:22:01 PDT"]
[Termination "Game drawn by 50-move rule"]

1. d4 {[%clk 0:03:00.9]} 1... d5 {[%clk 0:02:55.1]} 2. Nc3 {[%clk 0:03:00.5]}
2... c6 {[%clk 0:02:54.2]} 3. Bf4 {[%clk 0:02:59.9]} 3... Nf6 {[%clk 0:02:53.9]}
4. e3 {[%clk 0:02:57.6]} 4... a5 {[%clk 0:02:52.6]} 5. Bd3 {[%clk 0:02:52.8]}
5... Na6 {[%clk 0:02:51.7]} 6. a3 {[%clk 0:02:50.6]} 6... g6 {[%clk 0:02:48.8]}
7. Nge2 {[%clk 0:02:49]} 7... Bf5 {[%clk 0:02:44.1]} 8. Bxf5 {[%clk 0:02:47.2]}
8... gxf5 {[%clk 0:02:44.5]} 9. Be5 {[%clk 0:02:47.6]} 9... Bg7 {[%clk
0:02:41.4]} 10. Nf4 {[%clk 0:02:28.8]} 10... e6 {[%clk 0:02:28.6]} 11. h3 {[%clk
0:02:28.7]} 11... Nb8 {[%clk 0:02:21]} 12. g4 {[%clk 0:02:27.4]} 12... fxg4
{[%clk 0:02:18.4]} 13. hxg4 {[%clk 0:02:27.2]} 13... h6 {[%clk 0:02:08.2]} 14.
Qd3 {[%clk 0:02:18.1]} 14... Nbd7 {[%clk 0:02:04]} 15. Bd6 {[%clk 0:02:14.9]}
15... Nb6 {[%clk 0:01:53.2]} 16. Bc5 {[%clk 0:02:06.3]} 16... Bf8 {[%clk
0:01:00.8]} 17. Nxe6 {[%clk 0:01:57.4]} 17... fxe6 {[%clk 0:00:53.3]} 18. Qg6+
{[%clk 0:01:57.2]} 18... Kd7 {[%clk 0:00:53]} 19. Bxb6 {[%clk 0:01:57.2]} 19...
Qxb6 {[%clk 0:00:50.4]} 20. Qxf6 {[%clk 0:01:57.4]} 20... Be7 {[%clk 0:00:42]}
21. Qe5 {[%clk 0:01:47.6]} 21... Qxb2 {[%clk 0:00:42.1]} 22. Kd2 {[%clk
0:01:47.1]} 22... Raf8 {[%clk 0:00:20.3]} 23. f4 {[%clk 0:01:42.2]} 23... Qb6
{[%clk 0:00:20.5]} 24. Rab1 {[%clk 0:01:36.8]} 24... Qc7 {[%clk 0:00:20.7]} 25.
Qxc7+ {[%clk 0:01:25.7]} 25... Kxc7 {[%clk 0:00:20.9]} 26. a4 {[%clk 0:01:26.2]}
26... Bb4 {[%clk 0:00:21.2]} 27. Kd3 {[%clk 0:01:26]} 27... Rfg8 {[%clk
0:00:21]} 28. Rbg1 {[%clk 0:01:24.7]} 28... Bxc3 {[%clk 0:00:21.2]} 29. Kxc3
{[%clk 0:01:24.7]} 29... Kd7 {[%clk 0:00:20.8]} 30. Kd3 {[%clk 0:01:23.9]} 30...
b5 {[%clk 0:00:21.3]} 31. axb5 {[%clk 0:01:23.1]} 31... cxb5 {[%clk 0:00:22.2]}
32. Ra1 {[%clk 0:01:16.9]} 32... a4 {[%clk 0:00:22.5]} 33. Rh4 {[%clk
0:01:11.2]} 33... Rg6 {[%clk 0:00:20.7]} 34. f5 {[%clk 0:01:05.3]} 34... exf5
{[%clk 0:00:20.7]} 35. gxf5 {[%clk 0:01:06.2]} 35... Rf6 {[%clk 0:00:21.2]} 36.
e4 {[%clk 0:01:05.4]} 36... dxe4+ {[%clk 0:00:21.5]} 37. Kxe4 {[%clk 0:01:05.7]}
37... Rhf8 {[%clk 0:00:21.8]} 38. Rh5 {[%clk 0:01:05]} 38... Re8+ {[%clk
0:00:20.8]} 39. Kf4 {[%clk 0:00:59.3]} 39... Rd6 {[%clk 0:00:21.7]} 40. c3
{[%clk 0:00:55.3]} 40... Rc8 {[%clk 0:00:22]} 41. Rh3 {[%clk 0:00:52.2]} 41...
b4 {[%clk 0:00:20.8]} 42. cxb4 {[%clk 0:00:51]} 42... Rxd4+ {[%clk 0:00:21.1]}
43. Ke5 {[%clk 0:00:51.3]} 43... Rxb4 {[%clk 0:00:19.4]} 44. Rd1+ {[%clk
0:00:51.3]} 44... Ke7 {[%clk 0:00:17.2]} 45. f6+ {[%clk 0:00:48.5]} 45... Ke8
{[%clk 0:00:17.8]} 46. Rxh6 {[%clk 0:00:29.8]} 46... Rb5+ {[%clk 0:00:18]} 47.
Ke4 {[%clk 0:00:19.9]} 47... Rb4+ {[%clk 0:00:16.8]} 48. Kf5 {[%clk 0:00:17.3]}
48... Rc5+ {[%clk 0:00:13.4]} 49. Kg6 {[%clk 0:00:17.3]} 49... Rg4+ {[%clk
0:00:13.4]} 50. Kh7 {[%clk 0:00:17.8]} 50... Rcc4 {[%clk 0:00:07.7]} 51. Re1+
{[%clk 0:00:13.2]} 51... Kf8 {[%clk 0:00:06.2]} 52. Re7 {[%clk 0:00:12.9]} 52...
Rh4 {[%clk 0:00:05.9]} 53. Ra7 {[%clk 0:00:12.2]} 53... Rcf4 {[%clk 0:00:04.8]}
54. Rxh4 {[%clk 0:00:08.5]} 54... Rxh4+ {[%clk 0:00:04.9]} 55. Kg6 {[%clk
0:00:09.2]} 55... Rg4+ {[%clk 0:00:05.5]} 56. Kf5 {[%clk 0:00:09.3]} 56... Rg1
{[%clk 0:00:05.9]} 57. Rxa4 {[%clk 0:00:09.7]} 57... Kf7 {[%clk 0:00:05.5]} 58.
Ra7+ {[%clk 0:00:09.8]} 58... Kf8 {[%clk 0:00:06]} 59. Rb7 {[%clk 0:00:10.4]}
59... Rf1+ {[%clk 0:00:06.3]} 60. Ke6 {[%clk 0:00:11.1]} 60... Re1+ {[%clk
0:00:06.7]} 61. Kd6 {[%clk 0:00:11.7]} 61... Re2 {[%clk 0:00:05.8]} 62. Rh7
{[%clk 0:00:11.2]} 62... Kg8 {[%clk 0:00:05.6]} 63. Rg7+ {[%clk 0:00:11.7]}
63... Kf8 {[%clk 0:00:06]} 64. Ra7 {[%clk 0:00:12.3]} 64... Kg8 {[%clk
0:00:06.3]} 65. Kd5 {[%clk 0:00:12.8]} 65... Kf8 {[%clk 0:00:06.2]} 66. Kd4
{[%clk 0:00:13.2]} 66... Re1 {[%clk 0:00:06.3]} 67. Kd3 {[%clk 0:00:13]} 67...
Rf1 {[%clk 0:00:06.6]} 68. Ra6 {[%clk 0:00:13.3]} 68... Kf7 {[%clk 0:00:06.7]}
69. Ke4 {[%clk 0:00:14.2]} 69... Rxf6 {[%clk 0:00:06.7]} 70. Ra7+ {[%clk
0:00:15.1]} 70... Kg6 {[%clk 0:00:07.3]} 71. Ra5 {[%clk 0:00:16]} 71... Re6+
{[%clk 0:00:07.7]} 72. Kd5 {[%clk 0:00:16.6]} 72... Rf6 {[%clk 0:00:08.6]} 73.
Ra2 {[%clk 0:00:17.1]} 73... Rf5+ {[%clk 0:00:09.1]} 74. Ke6 {[%clk 0:00:17.7]}
74... Rf6+ {[%clk 0:00:10]} 75. Ke5 {[%clk 0:00:18.3]} 75... Rf5+ {[%clk
0:00:10.5]} 76. Ke4 {[%clk 0:00:19]} 76... Rg5 {[%clk 0:00:11.4]} 77. Ra6+
{[%clk 0:00:19.3]} 77... Kh5 {[%clk 0:00:11.6]} 78. Kf4 {[%clk 0:00:19.9]} 78...
Rg4+ {[%clk 0:00:12.2]} 79. Kf3 {[%clk 0:00:20.4]} 79... Rg6 {[%clk 0:00:12.4]}
80. Ra5+ {[%clk 0:00:20.6]} 80... Rg5 {[%clk 0:00:13]} 81. Ra7 {[%clk 0:00:21]}
81... Rf5+ {[%clk 0:00:13.4]} 82. Kg3 {[%clk 0:00:21.1]} 82... Rg5+ {[%clk
0:00:13.8]} 83. Kf4 {[%clk 0:00:21.2]} 83... Rg6 {[%clk 0:00:14.7]} 84. Kf5
{[%clk 0:00:21.4]} 84... Rg5+ {[%clk 0:00:15]} 85. Kf6 {[%clk 0:00:22]} 85...
Rg6+ {[%clk 0:00:14.8]} 86. Kf7 {[%clk 0:00:22.3]} 86... Rg4 {[%clk 0:00:15]}
87. Ra1 {[%clk 0:00:22.3]} 87... Kh4 {[%clk 0:00:15.1]} 88. Kf6 {[%clk
0:00:22.1]} 88... Rf4+ {[%clk 0:00:14.6]} 89. Ke5 {[%clk 0:00:22.4]} 89... Rg4
{[%clk 0:00:14.8]} 90. Kf5 {[%clk 0:00:22.2]} 90... Rg5+ {[%clk 0:00:15.4]} 91.
Kf4 {[%clk 0:00:22.4]} 91... Rg4+ {[%clk 0:00:16]} 92. Kf3 {[%clk 0:00:22.7]}
92... Rg3+ {[%clk 0:00:16.6]} 93. Kf2 {[%clk 0:00:23]} 93... Rg5 {[%clk
0:00:16.9]} 94. Rh1+ {[%clk 0:00:23.4]} 94... Kg4 {[%clk 0:00:17.5]} 95. Ke3
{[%clk 0:00:24.1]} 95... Kf5 {[%clk 0:00:17.4]} 96. Kd4 {[%clk 0:00:24.4]} 96...
Rg4+ {[%clk 0:00:17.7]} 97. Kd5 {[%clk 0:00:24.6]} 97... Rg5 {[%clk 0:00:18.3]}
98. Rh6 {[%clk 0:00:24.3]} 98... Rg6 {[%clk 0:00:18.3]} 99. Rh5+ {[%clk
0:00:24.2]} 99... Rg5 {[%clk 0:00:19]} 100. Rh2 {[%clk 0:00:25.1]} 100... Kf4+
{[%clk 0:00:18.5]} 101. Kd4 {[%clk 0:00:25.2]} 101... Rg3 {[%clk 0:00:17.6]}
102. Rh4+ {[%clk 0:00:25.3]} 102... Rg4 {[%clk 0:00:18.2]} 103. Rh1 {[%clk
0:00:25.5]} 103... Kf5+ {[%clk 0:00:18.5]} 104. Kd5 {[%clk 0:00:25.7]} 104...
Rg5 {[%clk 0:00:19.1]} 105. Rf1+ {[%clk 0:00:26]} 105... Kg6+ {[%clk 0:00:19.5]}
106. Ke6 {[%clk 0:00:26.6]} 106... Kh5 {[%clk 0:00:19.1]} 107. Rh1+ {[%clk
0:00:24.9]} 107... Kg4 {[%clk 0:00:19.2]} 108. Kf6 {[%clk 0:00:25.3]} 108...
Rf5+ {[%clk 0:00:19.5]} 109. Kg6 {[%clk 0:00:25.9]} 109... Re5 {[%clk
0:00:18.5]} 110. Rg1+ {[%clk 0:00:25.7]} 110... Kf4 {[%clk 0:00:19.1]} 111. Rf1+
{[%clk 0:00:25.8]} 111... Ke4 {[%clk 0:00:19.5]} 112. Kf6 {[%clk 0:00:26]}
112... Rh5 {[%clk 0:00:18]} 113. Re1+ {[%clk 0:00:25]} 113... Kf4 {[%clk
0:00:18.5]} 114. Rf1+ {[%clk 0:00:25.4]} 114... Ke4 {[%clk 0:00:19]} 115. Ra1
{[%clk 0:00:24.3]} 115... Rh6+ {[%clk 0:00:18.8]} 116. Kg5 {[%clk 0:00:24.4]}
116... Rd6 {[%clk 0:00:19.4]} 117. Re1+ {[%clk 0:00:24.7]} 117... Kd5 {[%clk
0:00:18.5]} 118. Kf5 {[%clk 0:00:25.2]} 118... Kc6 {[%clk 0:00:18.1]} 119. Ke5
{[%clk 0:00:25.6]} 119... Rd5+ {[%clk 0:00:16.7]} 1/2-1/2

[Event "Late-Titled-Tuesday-Blitz-June-18-2024"]
[Site "Chess.com"]
[Date "2024.06.18"]
[Round "3"]
[White "Sacbutt"]
[Black "lupta_robin"]
[Result "0-1"]
[WhiteElo "2312"]
[BlackElo "2608"]
[TimeControl "180+1"]
[EndTime "14:23:40 PDT"]
[Termination "lupta_robin won by resignation"]

1. e4 {[%clk 0:03:00.4]} 1... g6 {[%clk 0:02:59.3]} 2. d4 {[%clk 0:03:00.1]}
2... Nf6 {[%clk 0:02:59.5]} 3. Nc3 {[%clk 0:03:01]} 3... d5 {[%clk 0:02:59.6]}
4. e5 {[%clk 0:03:00.6]} 4... Ne4 {[%clk 0:03:00.3]} 5. Nge2 {[%clk 0:02:57.5]}
5... Bg7 {[%clk 0:02:59.2]} 6. Ng3 {[%clk 0:02:55.2]} 6... Nxc3 {[%clk
0:02:56.6]} 7. bxc3 {[%clk 0:02:56.1]} 7... c5 {[%clk 0:02:57.2]} 8. Bd3 {[%clk
0:02:48.6]} 8... Qa5 {[%clk 0:02:57.5]} 9. Qd2 {[%clk 0:02:39.1]} 9... Nc6
{[%clk 0:02:55.7]} 10. Ne2 {[%clk 0:02:23.1]} 10... c4 {[%clk 0:02:54.8]} 0-1

[Event "Late-Titled-Tuesday-Blitz-June-18-2024"]
[Site "Chess.com"]
[Date "2024.06.18"]
[Round "3"]
[White "Crazy_girl99"]
[Black "duone"]
[Result "1-0"]
[WhiteElo "2620"]
[BlackElo "2427"]
[TimeControl "180+1"]
[EndTime "14:24:06 PDT"]
[Termination "Crazy_girl99 won by resignation"]

1. e4 {[%clk 0:02:51.8]} 1... c6 {[%clk 0:03:00.2]} 2. d4 {[%clk 0:02:51.6]}
2... d5 {[%clk 0:02:59.9]} 3. e5 {[%clk 0:02:52.1]} 3... c5 {[%clk 0:02:58.5]}
4. dxc5 {[%clk 0:02:51.8]} 4... e6 {[%clk 0:02:56.6]} 5. b4 {[%clk 0:02:49.9]}
5... a5 {[%clk 0:02:55.3]} 6. c3 {[%clk 0:02:49.3]} 6... axb4 {[%clk 0:02:54.2]}
7. cxb4 {[%clk 0:02:49.6]} 7... b6 {[%clk 0:02:54.5]} 8. Be3 {[%clk 0:02:41.7]}
8... bxc5 {[%clk 0:02:54.7]} 9. bxc5 {[%clk 0:02:41.2]} 9... Bxc5 {[%clk
0:02:52.3]} 10. Bxc5 {[%clk 0:02:40.9]} 10... Qa5+ {[%clk 0:02:52.3]} 11. Nd2
{[%clk 0:02:41]} 11... Qxc5 {[%clk 0:02:52.5]} 12. Rc1 {[%clk 0:02:41.3]} 12...
Qd4 {[%clk 0:02:38.5]} 13. Rxc8+ {[%clk 0:02:38.6]} 13... Kd7 {[%clk 0:02:38.8]}
14. Qc1 {[%clk 0:02:26.8]} 14... Qxe5+ {[%clk 0:02:38.3]} 15. Be2 {[%clk
0:02:26.9]} 15... Rxa2 {[%clk 0:02:32.7]} 16. Ngf3 {[%clk 0:02:26]} 16... Ra1
{[%clk 0:02:30]} 17. Nxe5+ {[%clk 0:02:25.6]} 1-0

[Event "Late-Titled-Tuesday-Blitz-June-18-2024"]
[Site "Chess.com"]
[Date "2024.06.18"]
[Round "3"]
[White "Rakitic2010"]
[Black "ManMish2"]
[Result "0-1"]
[WhiteElo "2477"]
[BlackElo "2664"]
[TimeControl "180+1"]
[EndTime "14:24:25 PDT"]
[Termination "ManMish2 won by resignation"]

1. e4 {[%clk 0:03:00.9]} 1... e5 {[%clk 0:02:59.6]} 2. Nf3 {[%clk 0:02:59.5]}
2... Nc6 {[%clk 0:02:59.4]} 3. Bb5 {[%clk 0:02:59.7]} 3... a6 {[%clk 0:02:59.1]}
4. Ba4 {[%clk 0:02:59.5]} 4... Nf6 {[%clk 0:02:58.6]} 5. O-O {[%clk 0:02:59.2]}
5... Nxe4 {[%clk 0:02:57.8]} 6. Re1 {[%clk 0:02:58.8]} 6... Nc5 {[%clk
0:02:57.5]} 7. Bxc6 {[%clk 0:02:53]} 7... dxc6 {[%clk 0:02:58.4]} 8. Nxe5 {[%clk
0:02:49.6]} 8... Be7 {[%clk 0:02:58]} 9. d4 {[%clk 0:02:49.6]} 9... Ne6 {[%clk
0:02:58.1]} 10. c3 {[%clk 0:02:49.3]} 10... O-O {[%clk 0:02:57.4]} 11. Nd2
{[%clk 0:02:49.1]} 11... c5 {[%clk 0:02:57]} 12. Ndf3 {[%clk 0:02:48.7]} 12...
cxd4 {[%clk 0:02:55.4]} 13. cxd4 {[%clk 0:02:49.6]} 13... Qd5 {[%clk 0:02:54.5]}
14. Be3 {[%clk 0:02:46.1]} 14... b6 {[%clk 0:02:52.1]} 15. Rc1 {[%clk
0:02:44.8]} 15... Bb7 {[%clk 0:02:51.3]} 16. Rxc7 {[%clk 0:02:43.6]} 16... Nxc7
{[%clk 0:02:50.1]} 17. Qc2 {[%clk 0:02:28.6]} 17... Ne6 {[%clk 0:02:46.6]} 18.
Qc7 {[%clk 0:02:25.2]} 18... Nxc7 {[%clk 0:02:45.6]} 19. Rc1 {[%clk 0:02:15.4]}
19... Ne6 {[%clk 0:02:44.1]} 20. Rc7 {[%clk 0:02:11]} 20... Nxc7 {[%clk
0:02:44.1]} 0-1

[Event "Late-Titled-Tuesday-Blitz-June-18-2024"]
[Site "Chess.com"]
[Date "2024.06.18"]
[Round "3"]
[White "Renatoforf"]
[Black "ChessWarrior7197"]
[Result "0-1"]
[WhiteElo "2119"]
[BlackElo "3150"]
[TimeControl "180+1"]
[EndTime "14:24:38 PDT"]
[Termination "ChessWarrior7197 won by resignation"]

1. e4 {[%clk 0:03:00.9]} 1... c6 {[%clk 0:02:59.7]} 2. Nc3 {[%clk 0:02:58.4]}
2... d5 {[%clk 0:03:00.6]} 3. Nf3 {[%clk 0:02:57.8]} 3... Bg4 {[%clk 0:02:59.9]}
4. d4 {[%clk 0:02:56.2]} 4... e6 {[%clk 0:02:57.2]} 5. Bd3 {[%clk 0:02:54.7]}
5... dxe4 {[%clk 0:02:53.7]} 6. Nxe4 {[%clk 0:02:53.6]} 6... Nd7 {[%clk
0:02:51.5]} 7. O-O {[%clk 0:02:52.4]} 7... Ngf6 {[%clk 0:02:51.8]} 8. Ng3 {[%clk
0:02:49.1]} 8... Bd6 {[%clk 0:02:50.5]} 9. h3 {[%clk 0:02:43.4]} 9... Bxf3
{[%clk 0:02:49.1]} 10. Qxf3 {[%clk 0:02:42.6]} 10... Qc7 {[%clk 0:02:50]} 11. c3
{[%clk 0:02:38.8]} 11... O-O {[%clk 0:02:45.4]} 12. Ne4 {[%clk 0:02:36.2]} 12...
Nxe4 {[%clk 0:02:45]} 13. Qxe4 {[%clk 0:02:35.3]} 13... Nf6 {[%clk 0:02:43.8]}
14. Qh4 {[%clk 0:02:33.5]} 14... Be7 {[%clk 0:02:38.4]} 15. Bf4 {[%clk
0:02:29.1]} 15... Qb6 {[%clk 0:02:37]} 16. Bc1 {[%clk 0:02:27.2]} 16... Rad8
{[%clk 0:02:35.7]} 17. a3 {[%clk 0:02:22.7]} 17... c5 {[%clk 0:02:35.9]} 18.
dxc5 {[%clk 0:02:19.7]} 18... Bxc5 {[%clk 0:02:34.8]} 19. Bc2 {[%clk 0:02:16]}
19... Be7 {[%clk 0:02:28]} 20. Be3 {[%clk 0:02:12.2]} 20... Qxb2 {[%clk
0:02:27.3]} 0-1

[Event "Late-Titled-Tuesday-Blitz-June-18-2024"]
[Site "Chess.com"]
[Date "2024.06.18"]
[Round "3"]
[White "AustinThomas12345"]
[Black "JAN2404"]
[Result "1-0"]
[WhiteElo "2477"]
[BlackElo "2074"]
[TimeControl "180+1"]
[EndTime "14:24:48 PDT"]
[Termination "AustinThomas12345 won by resignation"]

1. e4 {[%clk 0:02:57.5]} 1... c5 {[%clk 0:02:59.7]} 2. Nf3 {[%clk 0:02:57.3]}
2... d6 {[%clk 0:03:00.1]} 3. d4 {[%clk 0:02:57.7]} 3... cxd4 {[%clk 0:03:00.8]}
4. Nxd4 {[%clk 0:02:58.6]} 4... Nf6 {[%clk 0:03:00.9]} 5. Nc3 {[%clk 0:02:59.3]}
5... Nc6 {[%clk 0:03:01.1]} 6. Bg5 {[%clk 0:02:56.7]} 6... e6 {[%clk 0:03:00.8]}
7. Qd2 {[%clk 0:02:57]} 7... a6 {[%clk 0:03:00.2]} 8. O-O-O {[%clk 0:02:56.5]}
8... Bd7 {[%clk 0:03:00.1]} 9. f4 {[%clk 0:02:32]} 9... Be7 {[%clk 0:02:58.3]}
10. Kb1 {[%clk 0:02:31]} 10... Nxd4 {[%clk 0:02:57.4]} 11. Qxd4 {[%clk
0:02:30.8]} 11... Bc6 {[%clk 0:02:38.9]} 12. Be2 {[%clk 0:02:23.5]} 12... O-O
{[%clk 0:02:30.3]} 13. h4 {[%clk 0:02:23.5]} 13... h6 {[%clk 0:02:28.1]} 14. Qe3
{[%clk 0:02:23.8]} 14... b5 {[%clk 0:02:20.2]} 15. e5 {[%clk 0:02:23]} 15... Nd5
{[%clk 0:02:13.7]} 16. Nxd5 {[%clk 0:02:15.4]} 16... Bxd5 {[%clk 0:02:12.4]} 17.
exd6 {[%clk 0:02:15.7]} 17... Qxd6 {[%clk 0:02:07.1]} 18. Bxe7 {[%clk
0:02:15.9]} 18... Qxe7 {[%clk 0:02:06.6]} 19. Rxd5 {[%clk 0:02:16.6]} 1-0